fUSD/lending_fUSD_20260614
["ID","MTS","AMOUNT","RATE_DAILY","PERIOD"]
[425037117,1781439052000,-500.0,0.00027397,2]
[425037116,1781439052000,-151.0,0.00027397,2]
[425037140,1781439052000,-500.0,0.00027397,2]
[425037111,1781439052000,-612.61,0.00027397,2]
[425037114,1781439052000,-500.0,0.00027397,2]
[425037086,1781439052000,-500.0,0.00027397,2]
[425037090,1781439052000,-500.0,0.00027397,2]
[425037093,1781439052000,-500.0,0.00027397,2]
[425037091,1781439052000,-500.0,0.00027397,2]
[425037092,1781439052000,-500.0,0.00027397,2]
[425037089,1781439052000,-500.0,0.00027397,2]
[425037094,1781439052000,-500.0,0.00027397,2]
[425037088,1781439052000,-500.0,0.00027397,2]
[425037095,1781439052000,-500.0,0.00027397,2]
[425037097,1781439052000,-500.0,0.00027397,2]
[425037096,1781439052000,-500.0,0.00027397,2]
[425037100,1781439052000,-424.622988,0.00027397,2]
[425037087,1781439052000,-500.0,0.00027397,2]
[425037098,1781439052000,-500.0,0.00027397,2]
[425037113,1781439052000,-500.0,0.00027397,2]
[425037115,1781439052000,-500.0,0.00027397,2]
[425037112,1781439052000,-151.0,0.00027397,2]
[425037110,1781439052000,-500.0,0.00027397,2]
[425037099,1781439052000,-583.88,0.00027397,2]
[425037104,1781439052000,-424.622988,0.00027397,2]
[425037108,1781439052000,-500.0,0.00027397,2]
[425037105,1781439052000,-500.0,0.00027397,2]
[425037102,1781439052000,-424.622988,0.00027397,2]
[425037103,1781439052000,-500.0,0.00027397,2]
[425037107,1781439052000,-424.622988,0.00027397,2]
[425037101,1781439052000,-500.0,0.00027397,2]
[425037106,1781439052000,-500.0,0.00027397,2]
[425037187,1781439053000,-234.54,0.0002758,7]
[425037183,1781439053000,-957.27,0.0002755,30]
[425037180,1781439053000,-960.17,0.0002755,30]
[425037179,1781439053000,-1113.48,0.0002755,30]
[425037176,1781439053000,-500.0,0.000275,7]
[425037181,1781439053000,-234.54,0.0002755,2]
[425037188,1781439053000,-236.03,0.0002758,7]
[425037178,1781439053000,-150.0,0.00027517,7]
[425037174,1781439053000,-624.0,0.00027492,30]
[425037171,1781439053000,-175.7965069,0.00027397,30]
[425037177,1781439053000,-263.0,0.00027509,2]
[425037182,1781439053000,-1307.3,0.0002755,30]
[425037194,1781439053000,-236.03,0.00027611,30]
[425037186,1781439053000,-236.03,0.0002755,2]
[425037184,1781439053000,-1138.27,0.0002755,30]
[425037189,1781439053000,-500.0,0.00027587,2]
[425037191,1781439053000,-200.0,0.000276,10]
[425037195,1781439053000,-234.54,0.00027641,2]
[425037198,1781439053000,-601.9472023,0.0002767,8]
[425037190,1781439053000,-81986.71741548,0.00027588,2]
[425037193,1781439053000,-234.54,0.00027611,30]
[425037196,1781439053000,-236.03,0.00027641,2]
[425037192,1781439053000,-200.0,0.000276,2]
[425037173,1781439053000,-587.5,0.00027453,120]
[425037197,1781439053000,-155.0,0.00027661,10]
[425037185,1781439053000,-1228.57,0.0002755,30]
[425037172,1781439053000,-4031.84342625,0.00027398,2]
[425037159,1781439053000,-500.0,0.00027397,2]
[425037175,1781439053000,-520.0,0.00027492,30]
[425037199,1781439053000,-601.94720229,0.0002767,8]
[425037145,1781439053000,-547.62,0.00027397,2]
[425037144,1781439053000,-223.8066,0.00027397,2]
[425037155,1781439053000,-500.0,0.00027397,2]
[425037152,1781439053000,-500.0,0.00027397,2]
[425037146,1781439053000,-500.0,0.00027397,2]
[425037153,1781439053000,-500.0,0.00027397,2]
[425037148,1781439053000,-500.0,0.00027397,2]
[425037149,1781439053000,-500.0,0.00027397,2]
[425037151,1781439053000,-500.0,0.00027397,2]
[425037147,1781439053000,-500.0,0.00027397,2]
[425037150,1781439053000,-500.0,0.00027397,2]
[425037158,1781439053000,-500.0,0.00027397,2]
[425037156,1781439053000,-500.0,0.00027397,2]
[425037166,1781439053000,-151.0,0.00027397,2]
[425037161,1781439053000,-516.79,0.00027397,2]
[425037163,1781439053000,-151.0,0.00027397,2]
[425037165,1781439053000,-151.0,0.00027397,2]
[425037157,1781439053000,-500.0,0.00027397,15]
[425037162,1781439053000,-500.0,0.00027397,2]
[425037160,1781439053000,-151.0,0.00027397,2]
[425037164,1781439053000,-236.03665473,0.00027397,2]
[425037168,1781439053000,-1500.0,0.00027397,2]
[425037167,1781439053000,-500.0,0.00027397,2]
[425037170,1781439053000,-7741.41,0.00027397,10]
[425037169,1781439053000,-300.0,0.00027397,2]
[425037200,1781439053000,-601.94720229,0.0002767,8]
[425037154,1781439053000,-500.0,0.00027397,2]
[425037211,1781439053000,-500.0,0.0002767,8]
[425037232,1781439053000,-284.08,0.00027671,8]
[425037230,1781439053000,-500.0,0.0002767,8]
[425037229,1781439053000,-529.33688092,0.0002767,8]
[425037234,1781439053000,-500.0,0.00027671,8]
[425037233,1781439053000,-500.0,0.00027671,8]
[425037238,1781439053000,-500.0,0.00027671,8]
[425037240,1781439053000,-500.0,0.00027671,8]
[425037242,1781439053000,-500.0,0.00027671,8]
[425037245,1781439053000,-552.46,0.00027671,8]
[425037246,1781439053000,-419.65,0.00027671,8]
[425037241,1781439053000,-500.0,0.00027671,8]
[425037247,1781439053000,-500.0,0.00027671,8]
[425037235,1781439053000,-500.0,0.00027671,8]
[425037243,1781439053000,-500.0,0.00027671,8]
[425037248,1781439053000,-378.41,0.00027671,8]
[425037239,1781439053000,-500.0,0.00027671,8]
[425037250,1781439053000,-580.75,0.00027671,8]
[425037249,1781439053000,-500.0,0.00027671,8]
[425037252,1781439053000,-500.0,0.00027671,8]
[425037253,1781439053000,-500.0,0.00027671,8]
[425037256,1781439053000,-489.38,0.00027671,8]
[425037254,1781439053000,-500.0,0.00027671,8]
[425037257,1781439053000,-178.81,0.00027671,8]
[425037255,1781439053000,-500.0,0.00027671,8]
[425037201,1781439053000,-500.0,0.0002767,7]
[425037251,1781439053000,-171.49,0.00027671,8]
[425037244,1781439053000,-500.0,0.00027671,8]
[425037231,1781439053000,-500.0,0.0002767,8]
[425037258,1781439053000,-500.0,0.00027671,8]
[425037226,1781439053000,-500.0,0.0002767,8]
[425037227,1781439053000,-500.0,0.0002767,8]
[425037209,1781439053000,-500.0,0.0002767,8]
[425037202,1781439053000,-500.0,0.0002767,8]
[425037208,1781439053000,-1123.40740569,0.0002767,8]
[425037203,1781439053000,-500.0,0.0002767,7]
[425037205,1781439053000,-500.0,0.0002767,8]
[425037206,1781439053000,-500.0,0.0002767,8]
[425037204,1781439053000,-300.0,0.0002767,8]
[425037207,1781439053000,-500.0,0.0002767,7]
[425037212,1781439053000,-500.0,0.0002767,8]
[425037215,1781439053000,-500.0,0.0002767,8]
[425037213,1781439053000,-500.0,0.0002767,8]
[425037217,1781439053000,-500.0,0.0002767,8]
[425037210,1781439053000,-500.0,0.0002767,8]
[425037214,1781439053000,-500.0,0.0002767,8]
[425037218,1781439053000,-500.0,0.0002767,8]
[425037237,1781439053000,-500.0,0.00027671,8]
[425037236,1781439053000,-500.0,0.00027671,8]
[425037223,1781439053000,-500.0,0.0002767,8]
[425037224,1781439053000,-500.0,0.0002767,8]
[425037228,1781439053000,-500.0,0.0002767,8]
[425037219,1781439053000,-500.0,0.0002767,8]
[425037222,1781439053000,-500.0,0.0002767,8]
[425037220,1781439053000,-500.0,0.0002767,8]
[425037225,1781439053000,-500.0,0.0002767,8]
[425037216,1781439053000,-500.0,0.0002767,8]
[425037221,1781439053000,-500.0,0.0002767,8]
[425037296,1781439054000,-500.0,0.00027671,8]
[425037297,1781439054000,-500.0,0.00027671,8]
[425037294,1781439054000,-181.29,0.00027671,8]
[425037295,1781439054000,-226.26,0.00027671,8]
[425037290,1781439054000,-500.0,0.00027671,8]
[425037293,1781439054000,-928.24,0.00027671,2]
[425037291,1781439054000,-500.0,0.00027671,8]
[425037289,1781439054000,-223.45,0.00027671,8]
[425037298,1781439054000,-500.0,0.00027671,8]
[425037288,1781439054000,-395.56,0.00027671,8]
[425037292,1781439054000,-559.93,0.00027671,8]
[425037301,1781439054000,-500.0,0.00027671,8]
[425037300,1781439054000,-500.0,0.00027671,8]
[425037303,1781439054000,-577.81,0.00027671,8]
[425037304,1781439054000,-281.1,0.00027671,8]
[425037302,1781439054000,-500.0,0.00027671,8]
[425037305,1781439054000,-500.0,0.00027671,8]
[425037306,1781439054000,-412.53,0.00027671,8]
[425037309,1781439054000,-500.0,0.00027671,8]
[425037312,1781439054000,-500.0,0.00027671,8]
[425037307,1781439054000,-500.0,0.00027671,8]
[425037308,1781439054000,-274.71,0.00027671,8]
[425037310,1781439054000,-500.0,0.00027671,8]
[425037284,1781439054000,-500.0,0.00027671,8]
[425037299,1781439054000,-274.03,0.00027671,8]
[425037287,1781439054000,-500.0,0.00027671,8]
[425037282,1781439054000,-230.92,0.00027671,8]
[425037286,1781439054000,-500.0,0.00027671,8]
[425037259,1781439054000,-500.0,0.00027671,8]
[425037260,1781439054000,-500.0,0.00027671,8]
[425037261,1781439054000,-245.76,0.00027671,8]
[425037262,1781439054000,-533.06,0.00027671,8]
[425037263,1781439054000,-500.0,0.00027671,8]
[425037268,1781439054000,-315.38,0.00027671,8]
[425037266,1781439054000,-500.0,0.00027671,8]
[425037265,1781439054000,-500.0,0.00027671,8]
[425037269,1781439054000,-515.69,0.00027671,8]
[425037264,1781439054000,-500.0,0.00027671,8]
[425037270,1781439054000,-500.0,0.00027671,8]
[425037285,1781439054000,-588.42,0.00027671,8]
[425037267,1781439054000,-345.71,0.00027671,8]
[425037271,1781439054000,-222.31,0.00027671,8]
[425037273,1781439054000,-500.0,0.00027671,8]
[425037275,1781439054000,-500.0,0.00027671,8]
[425037277,1781439054000,-390.71,0.00027671,8]
[425037274,1781439054000,-500.0,0.00027671,8]
[425037276,1781439054000,-500.0,0.00027671,8]
[425037279,1781439054000,-396.92,0.00027671,8]
[425037280,1781439054000,-500.0,0.00027671,8]
[425037278,1781439054000,-500.0,0.00027671,8]
[425037281,1781439054000,-563.21,0.00027671,8]
[425037283,1781439054000,-207.44,0.00027671,8]
[425037272,1781439054000,-591.0,0.00027671,8]
[425037313,1781439054000,-500.0,0.00027671,8]
[425037315,1781439054000,-500.0,0.00027671,8]
[425037311,1781439054000,-500.0,0.00027671,8]
[425037345,1781439054000,-616.06,0.00027671,8]
[425037346,1781439054000,-500.0,0.00027671,8]
[425037347,1781439054000,-500.0,0.00027671,8]
[425037348,1781439054000,-187.87,0.00027671,8]
[425037350,1781439054000,-500.0,0.00027671,8]
[425037351,1781439054000,-583.96,0.00027671,8]
[425037352,1781439054000,-500.0,0.00027671,8]
[425037349,1781439054000,-500.0,0.00027671,8]
[425037353,1781439054000,-500.0,0.00027671,8]
[425037359,1781439054000,-500.0,0.00027671,8]
[425037357,1781439054000,-500.0,0.00027671,8]
[425037344,1781439054000,-500.0,0.00027671,8]
[425037354,1781439054000,-174.46,0.00027671,8]
[425037356,1781439054000,-500.0,0.00027671,8]
[425037355,1781439054000,-500.0,0.00027671,8]
[425037361,1781439054000,-500.0,0.00027671,8]
[425037360,1781439054000,-500.0,0.00027671,8]
[425037362,1781439054000,-306.3,0.00027671,8]
[425037367,1781439054000,-306.44,0.00027671,8]
[425037366,1781439054000,-500.0,0.00027671,8]
[425037363,1781439054000,-500.0,0.00027671,8]
[425037364,1781439054000,-500.0,0.00027671,8]
[425037368,1781439054000,-500.0,0.00027671,8]
[425037314,1781439054000,-455.0,0.00027671,8]
[425037358,1781439054000,-500.0,0.00027671,8]
[425037339,1781439054000,-500.0,0.00027671,8]
[425037365,1781439054000,-500.0,0.00027671,8]
[425037342,1781439054000,-500.0,0.00027671,8]
[425037343,1781439054000,-500.0,0.00027671,8]
[425037316,1781439054000,-500.0,0.00027671,8]
[425037327,1781439054000,-369.29,0.00027671,8]
[425037320,1781439054000,-500.0,0.00027671,8]
[425037322,1781439054000,-377.31209958,0.00027671,2]
[425037318,1781439054000,-197.82,0.00027671,8]
[425037324,1781439054000,-500.0,0.00027671,8]
[425037321,1781439054000,-623.95,0.00027671,8]
[425037323,1781439054000,-500.0,0.00027671,8]
[425037319,1781439054000,-500.0,0.00027671,8]
[425037326,1781439054000,-500.0,0.00027671,8]
[425037325,1781439054000,-500.0,0.00027671,8]
[425037317,1781439054000,-500.0,0.00027671,8]
[425037330,1781439054000,-500.0,0.00027671,8]
[425037340,1781439054000,-500.0,0.00027671,8]
[425037341,1781439054000,-614.52,0.00027671,8]
[425037338,1781439054000,-500.0,0.00027671,8]
[425037328,1781439054000,-500.0,0.00027671,8]
[425037334,1781439054000,-293.99,0.00027671,8]
[425037335,1781439054000,-367.36,0.00027671,8]
[425037333,1781439054000,-500.0,0.00027671,8]
[425037337,1781439054000,-500.0,0.00027671,8]
[425037332,1781439054000,-500.0,0.00027671,8]
[425037331,1781439054000,-500.0,0.00027671,8]
[425037329,1781439054000,-500.0,0.00027671,8]
[425037336,1781439054000,-500.0,0.00027671,8]
[425037406,1781439055000,-463.02,0.00027671,8]
[425037407,1781439055000,-500.0,0.00027671,8]
[425037404,1781439055000,-254.48,0.00027671,8]
[425037405,1781439055000,-500.0,0.00027671,8]
[425037398,1781439055000,-424.83,0.00027671,8]
[425037403,1781439055000,-507.92,0.00027671,8]
[425037397,1781439055000,-383.05,0.00027671,8]
[425037399,1781439055000,-500.0,0.00027671,8]
[425037401,1781439055000,-500.0,0.00027671,8]
[425037402,1781439055000,-500.0,0.00027671,8]
[425037408,1781439055000,-500.0,0.00027671,8]
[425037415,1781439055000,-675.07,0.00027671,8]
[425037409,1781439055000,-169.87,0.00027671,8]
[425037410,1781439055000,-488.49,0.00027671,8]
[425037411,1781439055000,-500.0,0.00027671,8]
[425037413,1781439055000,-206.89,0.00027671,8]
[425037412,1781439055000,-500.0,0.00027671,8]
[425037423,1781439055000,-500.0,0.00027671,8]
[425037414,1781439055000,-297.81,0.00027671,8]
[425037418,1781439055000,-500.0,0.00027671,8]
[425037420,1781439055000,-392.97,0.00027671,8]
[425037421,1781439055000,-500.0,0.00027671,8]
[425037400,1781439055000,-324.8,0.00027671,8]
[425037417,1781439055000,-500.0,0.00027671,8]
[425037395,1781439055000,-277.82,0.00027671,8]
[425037379,1781439055000,-500.0,0.00027671,8]
[425037389,1781439055000,-500.0,0.00027671,8]
[425037370,1781439055000,-384.1,0.00027671,8]
[425037369,1781439055000,-500.0,0.00027671,8]
[425037372,1781439055000,-500.0,0.00027671,8]
[425037371,1781439055000,-500.0,0.00027671,8]
[425037375,1781439055000,-564.22,0.00027671,8]
[425037378,1781439055000,-500.0,0.00027671,8]
[425037376,1781439055000,-500.0,0.00027671,8]
[425037374,1781439055000,-500.0,0.00027671,8]
[425037373,1781439055000,-500.0,0.00027671,8]
[425037381,1781439055000,-353.29,0.00027671,8]
[425037380,1781439055000,-500.0,0.00027671,8]
[425037396,1781439055000,-500.0,0.00027671,8]
[425037377,1781439055000,-500.0,0.00027671,8]
[425037394,1781439055000,-500.0,0.00027671,8]
[425037384,1781439055000,-500.0,0.00027671,8]
[425037385,1781439055000,-500.0,0.00027671,8]
[425037391,1781439055000,-500.0,0.00027671,8]
[425037386,1781439055000,-500.0,0.00027671,8]
[425037383,1781439055000,-500.0,0.00027671,8]
[425037388,1781439055000,-500.0,0.00027671,8]
[425037393,1781439055000,-155.79,0.00027671,8]
[425037390,1781439055000,-631.84,0.00027671,8]
[425037387,1781439055000,-500.0,0.00027671,8]
[425037392,1781439055000,-158.32,0.00027671,8]
[425037382,1781439055000,-545.91,0.00027671,8]
[425037422,1781439055000,-500.0,0.00027671,8]
[425037416,1781439055000,-500.0,0.00027671,8]
[425037419,1781439055000,-500.0,0.00027671,8]
[425037451,1781439055000,-500.0,0.00027671,8]
[425037457,1781439055000,-173.61,0.00027671,8]
[425037461,1781439055000,-591.59,0.00027671,8]
[425037459,1781439055000,-565.92,0.00027671,8]
[425037462,1781439055000,-500.0,0.00027671,8]
[425037456,1781439055000,-372.27,0.00027671,8]
[425037454,1781439055000,-500.0,0.00027671,8]
[425037455,1781439055000,-500.0,0.00027671,8]
[425037460,1781439055000,-500.0,0.00027671,8]
[425037458,1781439055000,-500.0,0.00027671,8]
[425037474,1781439055000,-500.0,0.00027671,8]
[425037453,1781439055000,-274.42,0.00027671,8]
[425037465,1781439055000,-243.15,0.00027671,8]
[425037463,1781439055000,-500.0,0.00027671,8]
[425037467,1781439055000,-500.0,0.00027671,8]
[425037468,1781439055000,-500.0,0.00027671,8]
[425037473,1781439055000,-500.0,0.00027671,8]
[425037469,1781439055000,-500.0,0.00027671,8]
[425037470,1781439055000,-500.0,0.00027671,8]
[425037471,1781439055000,-500.0,0.00027671,8]
[425037472,1781439055000,-500.0,0.00027671,8]
[425037475,1781439055000,-500.0,0.00027671,8]
[425037476,1781439055000,-500.0,0.00027671,8]
[425037425,1781439055000,-500.0,0.00027671,8]
[425037466,1781439055000,-500.0,0.00027671,8]
[425037452,1781439055000,-203.26,0.00027671,8]
[425037464,1781439055000,-340.44,0.00027671,8]
[425037447,1781439055000,-212.69,0.00027671,8]
[425037448,1781439055000,-500.0,0.00027671,8]
[425037428,1781439055000,-500.0,0.00027671,8]
[425037426,1781439055000,-500.0,0.00027671,8]
[425037424,1781439055000,-567.55,0.00027671,8]
[425037427,1781439055000,-584.4,0.00027671,8]
[425037430,1781439055000,-500.0,0.00027671,8]
[425037429,1781439055000,-500.0,0.00027671,8]
[425037431,1781439055000,-374.3,0.00027671,8]
[425037438,1781439055000,-500.0,0.00027671,8]
[425037433,1781439055000,-500.0,0.00027671,8]
[425037437,1781439055000,-500.0,0.00027671,8]
[425037432,1781439055000,-180.58,0.00027671,8]
[425037434,1781439055000,-500.0,0.00027671,8]
[425037449,1781439055000,-324.3,0.00027671,8]
[425037436,1781439055000,-500.0,0.00027671,2]
[425037445,1781439055000,-500.0,0.00027671,8]
[425037443,1781439055000,-500.0,0.00027671,8]
[425037444,1781439055000,-500.0,0.00027671,8]
[425037446,1781439055000,-500.0,0.00027671,8]
[425037441,1781439055000,-154.37,0.00027671,8]
[425037439,1781439055000,-500.0,0.00027671,8]
[425037450,1781439055000,-500.0,0.00027671,8]
[425037440,1781439055000,-383.55,0.00027671,8]
[425037435,1781439055000,-500.0,0.00027671,8]
[425037442,1781439055000,-556.98,0.00027671,8]
[425037527,1781439056000,-500.0,0.00027671,8]
[425037513,1781439056000,-500.0,0.00027671,8]
[425037518,1781439056000,-500.0,0.00027671,8]
[425037515,1781439056000,-408.38,0.00027671,8]
[425037512,1781439056000,-500.0,0.00027671,8]
[425037516,1781439056000,-300.3,0.00027671,8]
[425037510,1781439056000,-500.0,0.00027671,8]
[425037509,1781439056000,-223.52,0.00027671,8]
[425037507,1781439056000,-500.0,0.00027671,8]
[425037506,1781439056000,-500.0,0.00027671,8]
[425037524,1781439056000,-500.0,0.00027671,8]
[425037514,1781439056000,-500.0,0.00027671,8]
[425037522,1781439056000,-500.0,0.00027671,8]
[425037531,1781439056000,-460.98,0.00027671,8]
[425037520,1781439056000,-649.32,0.00027671,8]
[425037517,1781439056000,-500.0,0.00027671,8]
[425037525,1781439056000,-500.0,0.00027671,8]
[425037523,1781439056000,-612.89,0.00027671,8]
[425037521,1781439056000,-833.95,0.00027671,8]
[425037526,1781439056000,-500.0,0.00027671,8]
[425037530,1781439056000,-500.0,0.00027671,8]
[425037528,1781439056000,-500.0,0.00027671,8]
[425037533,1781439056000,-500.0,0.00027671,8]
[425037529,1781439056000,-500.0,0.00027671,8]
[425037534,1781439056000,-561.75,0.00027671,8]
[425037511,1781439056000,-500.0,0.00027671,8]
[425037519,1781439056000,-500.0,0.00027671,8]
[425037508,1781439056000,-500.0,0.00027671,8]
[425037478,1781439056000,-438.76,0.00027671,8]
[425037499,1781439056000,-500.0,0.00027671,8]
[425037477,1781439056000,-500.0,0.00027671,8]
[425037479,1781439056000,-500.0,0.00027671,8]
[425037535,1781439056000,-500.0,0.00027671,8]
[425037482,1781439056000,-500.0,0.00027671,8]
[425037480,1781439056000,-500.0,0.00027671,8]
[425037481,1781439056000,-500.0,0.00027671,8]
[425037484,1781439056000,-500.0,0.00027671,8]
[425037483,1781439056000,-500.0,0.00027671,8]
[425037485,1781439056000,-270.01,0.00027671,8]
[425037487,1781439056000,-500.0,0.00027671,8]
[425037486,1781439056000,-500.0,0.00027671,8]
[425037491,1781439056000,-500.0,0.00027671,8]
[425037488,1781439056000,-337.03,0.00027671,8]
[425037492,1781439056000,-500.0,0.00027671,8]
[425037490,1781439056000,-500.0,0.00027671,8]
[425037489,1781439056000,-500.0,0.00027671,8]
[425037493,1781439056000,-500.0,0.00027671,8]
[425037503,1781439056000,-500.0,0.00027671,8]
[425037502,1781439056000,-500.0,0.00027671,8]
[425037504,1781439056000,-334.16,0.00027671,8]
[425037496,1781439056000,-500.0,0.00027671,8]
[425037495,1781439056000,-500.0,0.00027671,8]
[425037494,1781439056000,-500.0,0.00027671,8]
[425037497,1781439056000,-500.0,0.00027671,8]
[425037505,1781439056000,-500.0,0.00027671,8]
[425037500,1781439056000,-500.0,0.00027671,8]
[425037501,1781439056000,-500.0,0.00027671,8]
[425037498,1781439056000,-500.0,0.00027671,8]
[425037536,1781439056000,-500.0,0.00027671,8]
[425037538,1781439056000,-500.0,0.00027671,8]
[425037532,1781439056000,-500.0,0.00027671,8]
[425037568,1781439056000,-638.72,0.00027671,8]
[425037567,1781439056000,-500.0,0.00027671,8]
[425037569,1781439056000,-500.0,0.00027671,8]
[425037572,1781439056000,-421.6,0.00027671,8]
[425037570,1781439056000,-500.0,0.00027671,8]
[425037571,1781439056000,-500.0,0.00027671,8]
[425037574,1781439056000,-394.2,0.00027671,8]
[425037573,1781439056000,-500.0,0.00027671,8]
[425037578,1781439056000,-500.0,0.00027671,8]
[425037580,1781439056000,-500.0,0.00027671,8]
[425037584,1781439056000,-500.0,0.00027671,8]
[425037581,1781439056000,-320.0,0.00027671,8]
[425037586,1781439056000,-500.0,0.00027671,8]
[425037577,1781439056000,-190.07,0.00027671,8]
[425037583,1781439056000,-500.0,0.00027671,8]
[425037582,1781439056000,-500.0,0.00027671,8]
[425037590,1781439056000,-500.0,0.00027671,8]
[425037588,1781439056000,-622.78,0.00027671,8]
[425037587,1781439056000,-500.0,0.00027671,8]
[425037589,1781439056000,-500.0,0.00027671,8]
[425037592,1781439056000,-551.92,0.00027671,8]
[425037591,1781439056000,-500.0,0.00027671,8]
[425037594,1781439056000,-500.0,0.00027671,8]
[425037596,1781439056000,-163.65,0.00027671,8]
[425037593,1781439056000,-500.0,0.00027671,8]
[425037597,1781439056000,-500.0,0.00027671,8]
[425037595,1781439056000,-500.0,0.00027671,8]
[425037539,1781439056000,-500.0,0.00027671,8]
[425037585,1781439056000,-500.0,0.00027671,8]
[425037576,1781439056000,-500.0,0.00027671,8]
[425037579,1781439056000,-500.0,0.00027671,8]
[425037565,1781439056000,-195.05,0.00027671,8]
[425037537,1781439056000,-500.0,0.00027671,8]
[425037575,1781439056000,-500.0,0.00027671,8]
[425037541,1781439056000,-500.0,0.00027671,8]
[425037544,1781439056000,-392.62,0.00027671,8]
[425037540,1781439056000,-500.0,0.00027671,8]
[425037551,1781439056000,-500.0,0.00027671,8]
[425037543,1781439056000,-500.0,0.00027671,8]
[425037542,1781439056000,-500.0,0.00027671,8]
[425037546,1781439056000,-528.97,0.00027671,8]
[425037548,1781439056000,-500.0,0.00027671,8]
[425037549,1781439056000,-500.0,0.00027671,8]
[425037550,1781439056000,-500.0,0.00027671,8]
[425037547,1781439056000,-500.0,0.00027671,8]
[425037552,1781439056000,-500.0,0.00027671,8]
[425037545,1781439056000,-1000.0,0.00027671,8]
[425037556,1781439056000,-500.0,0.00027671,8]
[425037559,1781439056000,-500.0,0.00027671,8]
[425037557,1781439056000,-191.55,0.00027671,8]
[425037555,1781439056000,-500.0,0.00027671,8]
[425037562,1781439056000,-572.21,0.00027671,8]
[425037564,1781439056000,-500.0,0.00027671,8]
[425037563,1781439056000,-500.0,0.00027671,8]
[425037560,1781439056000,-500.0,0.00027671,8]
[425037558,1781439056000,-500.0,0.00027671,8]
[425037561,1781439056000,-504.12,0.00027671,8]
[425037554,1781439056000,-500.0,0.00027671,8]
[425037553,1781439056000,-500.0,0.00027671,8]
[425037566,1781439056000,-500.0,0.00027671,8]
[425037641,1781439057000,-500.0,0.00027671,8]
[425037637,1781439057000,-500.0,0.00027671,8]
[425037643,1781439057000,-500.0,0.00027671,8]
[425037642,1781439057000,-500.0,0.00027671,8]
[425037634,1781439057000,-500.0,0.00027671,8]
[425037640,1781439057000,-500.0,0.00027671,8]
[425037624,1781439057000,-501.60103934,0.00027671,8]
[425037647,1781439057000,-500.0,0.00027671,8]
[425037645,1781439057000,-500.0,0.00027671,8]
[425037635,1781439057000,-500.0,0.00027671,8]
[425037625,1781439057000,-500.0,0.00027671,8]
[425037638,1781439057000,-500.0,0.00027671,8]
[425037646,1781439057000,-405.14,0.00027671,8]
[425037639,1781439057000,-500.0,0.00027671,8]